Cogmind - Beta 13 @@@ ROGUE MODE // 2024.03.25 @ 10:28:04 Player: Senator honkstrong Result: Destroyed by G-34 Mercenary with Small Laser Performance ------------- Evolutions (0) 0 Regions Visited (1) 200 Robots Destroyed (1) 5 Value Destroyed (7) 7 Prototype IDs (0) 0 Alien Tech Used (0) 0 Bonus (0) 0 TOTAL SCORE: 212 Bonus ------- None Cogmind --------- Core Integrity 0/250 Matter 143/300 Energy 100/100 System Corruption 0% Temperature Cool (6) Movement Core (100) Ox1 Location -10/Materials Parts ------- > --- POWER (1) -------- (None) > --- PROPULSION (2) --- (None) > --- UTILITY (2) ------ Small Storage Unit > --- WEAPON (2) ------- (None) > --- INVENTORY (8) ---- (None) Peak State ------------ > --- POWER ------------ Ion Engine > --- PROPULSION ------- Wheel Wheel > --- UTILITY ---------- Small Storage Unit > --- WEAPON ----------- (None) > --- INVENTORY -------- (None) [Rating: 4] Favorites ----------- Power Ion Engine Engine Ion Engine Propulsion Wheel Wheel Wheel Utility Small Storage Unit Storage Small Storage Unit Weapon None Build | -11 -10 ------- Run | Yrd Mat Slots Evolved . | . . Power . | . . Propulsion . | . . Utility . | . . Weapon . | . . Parts Attached 4 | 4 . Power 1 | 1 . Engine 1 | 1 . Core . | . . Reactor . | . . Propulsion 2 | 2 . Treads . | . . Leg . | . . Wheel 2 | 2 . Hover . | . . Flight . | . . Utility 1 | 1 . Device . | . . Storage 1 | 1 . Processor . | . . Hackware . | . . Protection . | . . Artifact . | . . Weapon . | . . Energy Gun . | . . Energy Cannon . | . . Ballistic Gun . | . . Ballistic Cannon . | . . Launcher . | . . Special Weapon . | . . Impact Weapon . | . . Slashing Weapon . | . . Piercing Weapon . | . . Special Melee Weapon . | . . Unidentified Prototypes . | . . Parts Lost 3 | . 3 Power 1 | . 1 Propulsion 2 | . 2 Utility . | . . Weapon . | . . Highest Loss Streak 3 | . 3 To Critical Strikes . | . . Average Slot Usage (%) 48 | . 48 Engine 12 | . 12 Wheel 22 | . 22 Storage 14 | . 14 Naked Turns . | . . Heaviest Build 10 | 10 10 Greatest Support 20 | 20 20 Greatest Overweight (x) 3 | . 3 Average Overweight (x) . | . . Largest Inventory Capacity 8 | 8 8 Average Capacity 7 | 6 8 Most Carried . | . . Average Carried . | . . Final Capacity 8 | 8 8 Final Carried . | . . Class Distribution -------------------- 100% | Mutant Dominant Class ---------------- Mutant | -10/Materials Resources | -11 -10 ----------- Run | Yrd Mat Matter Collected 59 | 45 14 Remotely . | . . Salvage Created 14 | . 14 Parts 4 | . 4 Haulers Intercepted . | . . Recyclers Shooed . | . . Parts Field Recycled . | . . Retrieved Matter . | . . Parts Self-Destructed . | . . Prevented . | . . Kills | -11 -10 ------- Run | Yrd Mat Combat Hostiles Destroyed . | . . Classes Destroyed 1 | . 1 Tunneler 1 | . 1 Best Kill Streak 1 | . 1 Combat Bots Only . | . . Max Kills in Single Turn 1 | . 1 Gunslinging . | . . Exploded . | . . Melee . | . . Uniques/NPCs Destroyed . | . . Combat | -11 -10 -------- Run | Yrd Mat Hostile Shots Fired 64 | . 64 Missed 19 | . 19 Damage Taken 448 | . 448 Core 251 | . 251 Absorbed by Shields . | . . Core Remaining (%) 100 | 100 . Volleys Fired . | . . Largest . | . . Hottest . | . . Shots Fired . | . . Gun . | . . Cannon . | . . Launcher . | . . Special . | . . Kinetic . | . . Thermal . | . . Explosive . | . . Electromagnetic . | . . Robot Hit Streak . | . . Robot Miss Streak . | . . Penetration Max . | . . Secondary Targets . | . . Shots Hit Robots . | . . Core Hits 1 | . 1 Critical Kills . | . . Critical Parts Destroyed . | . . Critical Strikes . | . . Melee Attacks . | . . Impact . | . . Slashing . | . . Piercing . | . . Sneak Attacks . | . . Combat Hostiles . | . . Follow-up Attacks . | . . Damage Inflicted 27 | . 27 Guns . | . . Cannons . | . . Explosions . | . . Melee . | . . Ramming 27 | . 27 Kinetic . | . . Thermal . | . . Explosive . | . . Electromagnetic . | . . Impact . | . . Slashing . | . . Piercing . | . . Highest Corruption . | . . Average Corruption . | . . Corruption Purged . | . . Corruption Blocked . | . . Overload Shots . | . . Overflow Damage . | . . Projectiles . | . . Explosions . | . . Melee . | . . Knockbacks . | . . Impact . | . . Kinetic . | . . Secondary . | . . Self-Inflicted Damage 12 | . 12 Shots . | . . Rammed 4 | . 4 Targets Rammed 4 | . 4 Kicked . | . . Crushed . | . . Highest Temperature . | . . Average Temperature . | . . Received Heat Transfer 150 | . 150 Siege Activations . | . . Robots Corrupted . | . . Combat Hostiles . | . . Parts Fried . | . . Impact Corruptions . | . . Robots Melted . | . . Combat Hostiles . | . . Parts Melted . | . . Heat Transferred . | . . Parts Sabotaged . | . . Parts Stolen . | . . Parts Stripped . | . . Power Chain Reactions . | . . Alert | -11 -10 ------- Run | Yrd Mat Peak Influence 5 | . 5 Initial . | . . Average . | . . Maximum Alert Level . | . . Low Security (%) 100 | 100 100 Level 1 . | . . Level 2 . | . . Level 3 . | . . Level 4 . | . . Level 5 . | . . High Security . | . . Max Security . | . . Squads Dispatched 1 | . 1 Investigation . | . . Extermination . | . . Reinforcement 1 | . 1 Assault . | . . Garrison . | . . Intercept . | . . Searches Triggered . | . . Construction Impeded . | . . Haulers Reinforced . | . . Active Scanning Responses . | . . Cargo Convoy Interrupts . | . . Stealth | -11 -10 --------- Run | Yrd Mat Distress Signals . | . . Communications Jammed . | . . Distress Signals . | . . Times Spotted 8 | . 8 Peak Tracking Total 6 | . 6 Tactical Retreats . | . . Traps | -11 -10 ------- Run | Yrd Mat Traps Triggered . | . . Indirectly . | . . Trap Hack Attempts . | . . Triggered . | . . Disarmed . | . . Reprogrammed . | . . Reused . | . . Traps Extracted . | . . Installed . | . . Triggered . | . . Machines | -11 -10 ---------- Run | Yrd Mat Machines Disabled . | . . Max in Single Turn . | . . Machines Repaired . | . . Machines Dismantled . | . . Machines Sabotaged . | . . Overloaded Fab Kills . | . . Hacking | -11 -10 --------- Run | Yrd Mat Machines Accessed . | . . Terminals . | . . Fabricators . | . . Repair Stations . | . . Recycling Units . | . . Scanalyzers . | . . Garrison Access . | . . Total Hacks . | . . Successful . | . . Failed . | . . Catastrophic . | . . Database Lockouts . | . . Manual . | . . Terminals . | . . Fabricators . | . . Repair Stations . | . . Recycling Units . | . . Scanalyzers . | . . Garrison Access . | . . Terminal Hacks . | . . Fabricator Hacks . | . . Repair Station Hacks . | . . Recycling Unit Hacks . | . . Scanalyzer . | . . Garrison Access Hacks . | . . Unauthorized Hacks . | . . Terminals . | . . Fabricators . | . . Repair Stations . | . . Recycling Units . | . . Scanalyzers . | . . Garrison Access . | . . Data Cores Recovered . | . . Used . | . . Hacking Detections . | . . Full Trace Events . | . . Feedback Events . | . . Feedback Blocked . | . . Robot Schematics Acquired . | . . Robots Built . | . . Authchips . | . . Time . | . . Total Robot Build Rating . | . . Part Schematics Acquired . | . . Parts Built . | . . Authchips . | . . Time . | . . Total Part Build Rating . | . . Parts Repaired . | . . Time . | . . Parts Recycled . | . . Recycled Matter . | . . Retrieved Matter . | . . Retrieved Components . | . . Parts Scanalyzed . | . . Part Schematics Acquired . | . . Parts Damaged . | . . Bothacking | -11 -10 ------------ Run | Yrd Mat Used RIF Installer . | . . Robots Hacked . | . . Non-combat . | . . Combat . | . . Robot Hacks Applied . | . . Relay Couplers Released . | . . Fabnet Peak Effective % . | . . Robots Rewired . | . . Allies Hacked . | . . Hacks Repelled . | . . Allies | -11 -10 -------- Run | Yrd Mat Total Allies . | . . Largest Group . | . . Highest-Rated Group . | . . Highest-Rated Ally . | . . Total Orders . | . . Ally Attacks . | . . Total Damage . | . . Kills . | . . Allies Corrupted . | . . Allies Melted . | . . Intel | -11 -10 ------- Run | Yrd Mat Robot Analysis Total . | . . Derelict Logs Recovered . | . . Drone Launches . | . . Drone Recoveries . | . . Exploration | -11 -10 ------------- Run | Yrd Mat Turns Passed 178 | 29 149 Spaces Moved 149 | 30 119 Core 28 | 4 24 Treads . | . . Legs . | . . Wheels 121 | 26 95 Hover . | . . Flight . | . . Fastest Speed 50 | 50 80 Average Speed 85 | 76 87 Slowest Speed 200 | 80 200 Overloaded Moves . | . . Propulsion Burnouts . | . . Robots Hopped . | . . Cave-ins Triggered . | . . Exploration Rate (%) 16 | 4 28 Regions Visited 1 Branch Regions . Pre-discovered Areas . | . . Known Exits Taken . | . . Unknown Exits Taken 1 | 1 . Scrap Searched . | . . Spaces Dug . | . . Terrain Destroyed . | . . Melee . | . . Projectile . | . . AOE . | . . Terrain Rammed . | . . Walls Destroyed . | . . Machines Disabled . | . . Actions | -11 -10 --------- Run | Yrd Mat Total 197 | 33 164 Wait 41 | . 41 Move 148 | 29 119 Hop . | . . Pick Up . | . . Fast Attach 4 | 4 . Attach . | . . Detach . | . . Swap . | . . Drop . | . . Fire . | . . Melee . | . . Ram 4 | . 4 Kick . | . . Crush . | . . Escape Stasis . | . . Rewire . | . . Trap . | . . Miscellaneous . | . . Route ------- -11/Scrapyard -10/Materials (discovered 1 exit: [*Mat]) History --------- Turn | Location | Event 18 | -11/Scrapyard | Discovered new exit (range 15) 30 | -11/Scrapyard | Entered Materials 145 | -10/Materials | Discovered new exit (range 15) 170 | -10/Materials | Core integrity fell below 50% 177 | -10/Materials | Core integrity fell below 20% 179 | -10/Materials | Destroyed by G-34 Mercenary with Small Laser Last Messages --------------- 00102_ O-16 Technician locks terminal. 00102_ U-05 Engineer lays Concrete. 00104_ K-01 Serf collects debris. 00120_ Slammed into T-07 Excavator. 00120_ T-07 Excavator destroyed. 00120_ K-01 Serf collects debris. 00121_ Acquired 14 matter. 00122_ Slammed into K-01 Serf. 00128_ R-06 Scavenger collects Wheel. 00129_ K-01 Serf collects debris. 00131_ S-10 Pest destroyed. 00138_ Wheel destroyed. 00139_ Slammed into G-34 Mercenary. 00139_ K-01 Serf collects debris. 00143_ S-10 Pest destroyed. 00143_ K-01 Serf collects debris. 00145_ EXIT=FOUND 00147_ K-01 Serf collects debris. 00151_ Wheel destroyed. 00159_ Ion Engine destroyed. Map ----- +----------------------------------------------------+ | ????????????????????????????? | | ????????????????????????????? | | ????????????????????????????? | | ????????????????????????????? | | ????????????????????????????? | | ?????????? ?????????????????? | | ????????? ?????????????????? | | ?????????? ?????????????????? | | ?????????? ????????????????? | | ??# ?????# ????????????????? | | ??# ?????# ????????????????? | | ??# a??####+######??????????? | | ??# ??# #??????????? | | ??# ### #??????????? | | ??# # #??????????? | | ??# + #??????????? | | ??# # #??????????? | | ??# # ###+######## | | ??# # / + | | ??# # # #"" """ | | ??# #####+##### #"Y """ | | ??# *% #"" """ | | ??# * + | | ??# %= # === | | ??# ###+########### == | | ??# @ #?????????????# == | | ??# #?????????????#! | | ??# #?????????????###/#### | | ??# #???????????????# #??? | | ??# g #???????????????# #??? | | ??# g#???????????????#!#??? | | ??# #???????????????#|#### | | ??# sg#???????????#####! | | ??# #???????????#[[ | | ??# ########????#[[ | | ??# # """ #????#[[ ###### | | ??# # "T" #????#[[ ?????? | | ??# # #????#!! ?????? | | ??# + #????#!!??????? | | ??# # #????###??????? | | ??# < # #?????????????? | | ??# ########?????????????? | | ??######????????????????????? | | ????????????????????????????? | | ????????????????????????????? | | ????????????????????????????? | | ????????????????????????????? | | ????????????????????????????? | | ????????????????????????????? | | ????????????????????????????? | +----------------------------------------------------+ Best States ------------- Heat Dissipation 25 Energy Generation 10 Energy Capacity 250 Matter Stores 143 Matter Capacity 300 Sight Range 16 Terrain Scan Density 10 Evasion (%) 44 Item Schematics ----------------- None Robot Schematics ------------------ None Fabricated ------------ Nothing Alien Tech Used ----------------- None Achievements -------------- None Challenges ------------ None Game ------ Seed WardroneServoAmplifier Manual? 0 Play Time 00:02:07 Cumulative 71.4 hours Start 2024.03.25 @ 10:23:54 End 2024.03.25 @ 10:28:04 Sessions 2 Manual Loads 0 Difficulty Rogue Special Mode None Game No. 58 Rogue 58 Adventurer 0 Explorer 0 Win Type - Total 0 Types 0/0/0/0/0/0/0/0/0 Lore% 32 Gallery% 40 Achievement% 34 Wizard Run 0 Options --------- Layout 0 ASCII 0 Keyboard 0 Movement Mouse Keybinds 0 Fullscreen 1 Font 18/SmallcapsGlow Map View 76x50 Zoom Use 0% Tactical HUD 1 Map Filters NONE Filters NONE Steam 0 RUN: 1a78caf1-c559-4724-be0a-5cd72c5e4e7b